Cogmind - Beta 16.1 @@@ ROGUE MODE // 2026.04.11 @ 07:48:37 Player: ae Result: Escaped! Performance ------------- Evolutions (9) 4500 Regions Visited (15) 3000 Robots Destroyed (77) 385 Value Destroyed (1655) 1655 Prototype IDs (40) 800 Alien Tech Used (0) 0 Bonus (5665) 5665 TOTAL SCORE: 16005 Bonus ------- Follower Combat Kills 130 Entered DSFs 500 Aligned with FarCom 300 Win 3000 Win Speed 1735 Cogmind --------- Core Integrity 1432/1600 Matter 6/300 Energy 97/100 System Corruption 5% Temperature Cool (15) Movement Flying (22) Location To Epsilon Eridani Parts ------- > --- POWER (2) -------- Backup Power VII Backup Power VII > --- PROPULSION (8) --- Improved Cesium-ion Thruster Improved Cesium-ion Thruster Cooled Cesium-ion Thruster Nuclear Pulse Array Field Propulsion Array Q-thruster > --- UTILITY (13) ----- Advanced Cooling System Small Storage Unit Structural Scanner Enhanced Optical Array 0b10 Alert Chip Advanced Reaction Control System Hacking Suite Hacking Suite Advanced Hacking Suite Advanced Hacking Suite Advanced System Shield Advanced System Shield > --- WEAPON (2) ------- Graviton Cannon Precision Rocket Launcher > --- INVENTORY (8) ---- Backup Power VII Improved Cesium-ion Thruster Advanced Transmission Jammer Nova Cannon Enhanced Nova Cannon Graviton Cannon Chainsword Enhanced Force Lance Peak State ------------ > --- POWER ------------ Backup Power VII Backup Power VII > --- PROPULSION ------- Improved Cesium-ion Thruster Improved Cesium-ion Thruster Cooled Cesium-ion Thruster Nuclear Pulse Array Field Propulsion Array Q-thruster > --- UTILITY ---------- Advanced Cooling System Small Storage Unit Structural Scanner Enhanced Optical Array 0b10 Alert Chip Advanced Reaction Control System Hacking Suite Hacking Suite Advanced Hacking Suite Advanced Hacking Suite Advanced Hacking Suite Advanced System Shield Advanced System Shield > --- WEAPON ----------- Graviton Cannon Enhanced Force Lance > --- INVENTORY -------- Backup Power VII Improved Cesium-ion Thruster Advanced Transmission Jammer Nova Cannon Enhanced Nova Cannon Graviton Cannon Precision Rocket Launcher Chainsword [Rating: 149] Favorites ----------- Power Backup Power VII Engine Ion Engine Power Core Backup Power VII Reactor Light Antimatter Reactor Propulsion Light Treads Treads Light Treads Flight Unit Improved Cesium-ion Thruster Utility Small Storage Unit Device Seismic Detector Storage Small Storage Unit Processor 0b10 Alert Chip Hackware Hacking Suite Protection Light Armor Plating Weapon Assault Rifle Energy Cannon Nova Cannon Ballistic Gun Assault Rifle Ballistic Cannon Improved Light Cannon Launcher Rocket Launcher Slashing Weapon Chainsword Piercing Weapon Enhanced Force Lance Build | -11 -10 -10 -9 -9 -9 -8 -8 -7 -6 -5 -4 -3 -2 -2 -1 ------- Run | Yrd Mat Min Mat Min Exi Min Mat Fac Fac Fac Fac Res Res DSF Acc Slots Evolved 18 | . . . 2 . . . 2 2 2 2 2 2 2 . 2 Power 1 | . . . . . . . . 1 . . . . . . . Propulsion 6 | . . . 1 . . . 2 1 . 1 . . 1 . . Utility 11 | . . . 1 . . . . . 2 1 2 2 1 . 2 Weapon . | . . . . . . . . . . . . . . . . Parts Attached 73 | 8 2 . 13 . . 1 9 6 5 7 4 6 2 2 8 Power 8 | 1 . . 2 . . . 1 . . 3 1 . . . . Engine 4 | 1 . . 2 . . . 1 . . . . . . . . Core 3 | . . . . . . . . . . 3 . . . . . Reactor 1 | . . . . . . . . . . . 1 . . . . Propulsion 22 | 2 1 . 4 . . . 6 1 3 . 1 1 1 . 2 Treads 7 | 2 1 . 4 . . . . . . . . . . . . Leg . | . . . . . . . . . . . . . . . . Wheel . | . . . . . . . . . . . . . . . . Hover . | . . . . . . . . . . . . . . . . Flight 15 | . . . . . . . 6 1 3 . 1 1 1 . 2 Utility 29 | 3 . . 4 . . 1 1 4 2 3 2 3 1 1 4 Device 8 | 1 . . 1 . . . . 1 1 1 . 1 1 . 1 Storage 2 | 2 . . . . . . . . . . . . . . . Processor 6 | . . . . . . . . 3 . 1 1 1 . . . Hackware 9 | . . . . . . . 1 . 1 1 1 1 . 1 3 Protection 4 | . . . 3 . . 1 . . . . . . . . . Artifact . | . . . . . . . . . . . . . . . . Weapon 14 | 2 1 . 3 . . . 1 1 . 1 . 2 . 1 2 Energy Gun . | . . . . . . . . . . . . . . . . Energy Cannon 1 | . . . . . . . . . . . . 1 . . . Ballistic Gun 4 | 2 1 . 1 . . . . . . . . . . . . Ballistic Cannon 3 | . . . 1 . . . . . . . . . . 1 1 Launcher 2 | . . . 1 . . . . . . . . . . . 1 Special Weapon . | . . . . . . . . . . . . . . . . Impact Weapon . | . . . . . . . . . . . . . . . . Slashing Weapon 2 | . . . . . . . 1 1 . . . . . . . Piercing Weapon 2 | . . . . . . . . . . 1 . 1 . . . Special Melee Weapon . | . . . . . . . . . . . . . . . . Unidentified Prototypes 2 | . . . . . . . 1 . . . . . . 1 . Parts Lost 10 | . . . . . . . 5 . . 1 . . . 2 2 Power 2 | . . . . . . . . . . 1 . . . 1 . Propulsion 2 | . . . . . . . 1 . . . . . . 1 . Utility 4 | . . . . . . . 2 . . . . . . . 2 Weapon 2 | . . . . . . . 2 . . . . . . . . Highest Loss Streak 2 | . . . . . . . 2 . . 1 . . . 1 1 To Critical Strikes . | . . . . . . . . . . . . . . . . Average Backups 7 | 4 7 8 7 8 8 8 5 7 7 7 7 8 7 6 7 Power . | . . . . . . . . . 1 . . 1 1 1 . Propulsion 2 | 2 3 4 3 5 4 4 1 1 2 2 2 1 . . . Utility 2 | . 2 2 2 2 2 3 2 2 2 2 2 2 2 2 1 Weapon 1 | . 1 2 1 1 1 1 2 2 2 2 2 2 3 3 4 Tool/Special . | . . . . . . . . . . . . . . . . Unused Backups 24 | . 7 3 2 . 1 . . 1 2 2 1 2 . 1 2 Power 2 | . 1 . . . . . . 1 . . . . . . . Propulsion 10 | . 5 2 2 . 1 . . . . . . . . . . Utility 6 | . 1 . . . . . . . 1 2 1 . . . 1 Weapon 6 | . . 1 . . . . . . 1 . . 2 . 1 1 Tool/Special . | . . . . . . . . . . . . . . . . Average Slot Usage (%) 95 | . 100 100 99 100 100 100 81 86 91 94 98 96 88 89 88 Engine 7 | . 14 14 11 11 11 11 6 3 . . . . . . . Core 3 | . . . . . . . . 7 13 11 8 4 4 4 7 Treads 17 | . 28 28 32 33 33 33 1 . . . . . . . . Flight 16 | . . . . . . . 37 45 39 41 36 32 30 30 23 Device 10 | . 14 14 9 11 11 11 7 3 13 11 10 12 14 17 12 Storage 9 | . 14 14 11 11 11 11 9 7 6 5 5 4 4 4 4 Processor 1 | . . . . . . . . 1 . 4 9 10 8 8 8 Hackware 6 | . . . . . . . 5 7 12 11 14 16 17 17 26 Protection 4 | . . . 12 11 11 11 4 . . . . . . . . Ballistic Gun 9 | . 28 28 18 11 11 4 3 . . . . . . . . Ballistic Cannon 3 | . . . 3 11 11 11 . . . . . . . 2 1 Slashing Weapon 1 | . . . . . . . 3 7 6 5 5 3 . . . Peak Build Rating 149 | 8 8 7 12 12 13 13 31 51 60 80 94 112 119 125 149 Average Rating 37 | 6 7 7 9 12 12 13 22 42 58 74 91 103 116 121 132 On Entrance 45 | . 8 7 7 12 12 13 13 30 49 60 80 93 107 119 120 Avg Prop Armor Cover (%) 3 | . . . . . . . 2 4 4 . . . . . 6 Naked Turns . | . . . . . . . . . . . . . . . . Heaviest Build 44 | 16 15 14 22 22 22 24 24 17 19 26 30 40 36 37 44 Greatest Support 60 | 40 40 40 60 60 60 60 60 33 36 42 43 43 49 49 56 Greatest Overweight (x) 1 | . . . . . . . . . . . . 1 . . . Average Overweight (x) . | . . . . . . . . . . . . . . . . Largest Inventory Capacity 8 | 8 8 8 8 8 8 8 8 8 8 8 8 8 8 8 8 Average Capacity 7 | 7 8 8 8 8 8 8 8 8 8 8 8 8 8 8 8 Most Carried 8 | 8 8 8 8 8 8 8 8 8 8 8 8 8 8 8 8 Average Carried 7 | 4 7 8 7 8 7 8 5 7 7 7 7 7 7 7 7 Final Capacity 8 | 8 8 8 8 8 8 8 8 8 8 8 8 8 8 8 8 Final Carried 8 | 8 8 8 8 8 8 8 5 8 8 7 8 8 7 8 8 Class Distribution -------------------- 59% | Mutant 13% | Sprinter 12% | Hacker-Scout 8% | Wizard-Scout 6% | Hacker-Sprinter Dominant Class ---------------- Mutant | -10/Materials Mutant | -10/Mines Mutant | -9/Materials Mutant | -9/Mines Mutant | -9/Exiles Mutant | -8/Mines Sprinter | -8/Materials Sprinter | -7/Factory Hacker-Sprinter | -6/Factory Hacker-Scout | -5/Factory Hacker-Scout | -4/Factory Hacker-Scout | -3/Research Hacker-Scout | -2/Research Hacker-Scout | -2/DSF Wizard-Scout | -1/Access Resources | -11 -10 -10 -9 -9 -9 -8 -8 -7 -6 -5 -4 -3 -2 -2 -1 ----------- Run | Yrd Mat Min Mat Min Exi Min Mat Fac Fac Fac Fac Res Res DSF Acc Matter Collected 1903 | 400 99 111 536 14 . 38 69 157 28 187 79 . . 105 80 Remotely . | . . . . . . . . . . . . . . . . Salvage Created 2513 | 209 197 186 875 . . 54 118 152 28 203 114 90 . 97 190 Parts 156 | 12 19 9 49 . . 3 10 16 5 7 3 5 . 1 17 Haulers Intercepted 9 | . 1 . 4 . . . 1 . . . 1 1 . 1 . Recyclers Shooed 5 | . . 2 3 . . . . . . . . . . . . Parts Field Recycled . | . . . . . . . . . . . . . . . . Retrieved Matter . | . . . . . . . . . . . . . . . . Parts Self-Destructed . | . . . . . . . . . . . . . . . . Prevented . | . . . . . . . . . . . . . . . . Parts Restored . | . . . . . . . . . . . . . . . . Kills | -11 -10 -10 -9 -9 -9 -8 -8 -7 -6 -5 -4 -3 -2 -2 -1 ------- Run | Yrd Mat Min Mat Min Exi Min Mat Fac Fac Fac Fac Res Res DSF Acc Combat Hostiles Destroyed 36 | . 5 3 18 . . 4 1 . . . . . . . 5 Guns 21 | . 5 3 13 . . . . . . . . . . . . Cannons 5 | . . . 2 . . 2 . . . . . . . . 1 AOE 10 | . . . 3 . . 2 1 . . . . . . . 4 Classes Destroyed 12 | 3 4 . 3 . . . 1 . . . . . . . 1 Worker 7 | 2 . . . . . . 1 3 . 1 . . . . . Builder 6 | . . . 2 . . . . 1 . . . . . . 3 Tunneler 6 | 5 . . . . . . . . . . . . . . 1 Hauler 9 | . 1 . 4 . . . 1 . . . 1 1 . 1 . Recycler 5 | 1 . 2 . . . . . 1 . 1 . . . . . Operator 3 | . . . . . . . 1 . 1 1 . . . . . Watcher 5 | . 2 . 1 . . . 1 . . 1 . . . . . Swarmer 12 | . 2 3 4 . . 3 . . . . . . . . . Grunt 16 | . 3 . 10 . . 1 1 . . . . . . . 1 Brawler 1 | . . . 1 . . . . . . . . . . . . Sentry 3 | . . . 3 . . . . . . . . . . . . Programmer 4 | . . . . . . . . . . . . . . . 4 Best Kill Streak 11 | 2 3 4 11 . . 3 4 3 1 3 1 1 . 1 5 Combat Bots Only 9 | . 3 3 9 . . 3 1 . . . . . . . 4 Max Kills in Single Turn 2 | 2 1 1 2 . . 2 2 1 1 1 1 1 . 1 2 Gunslinging . | . . . . . . . . . . . . . . . . Exploded 2 | . . . 1 . . 2 1 . . . . . . . 1 Melee . | . . . . . . . . . . . . . . . . Uniques/NPCs Destroyed . | . . . . . . . . . . . . . . . . Combat | -11 -10 -10 -9 -9 -9 -8 -8 -7 -6 -5 -4 -3 -2 -2 -1 -------- Run | Yrd Mat Min Mat Min Exi Min Mat Fac Fac Fac Fac Res Res DSF Acc Hostile Shots Fired 199 | . 15 19 48 . . 5 43 9 . 4 . 4 . 4 48 Missed 79 | . 3 5 12 . . 3 24 3 . 1 . 2 . 1 25 Hits 120 | . 12 14 36 . . 2 19 6 . 3 . 2 . 3 23 Melee 2 | . . . . . . . . . . . . . . 2 . Projectile 118 | . 12 14 36 . . 2 19 6 . 3 . 2 . 1 23 AOE 1 | . . . . . . . . . . . . . . . 1 Critical Strikes 8 | . 1 . 1 . . 1 1 . . 1 . . . 1 2 Part Disruptions 1 | . . . . . . . . . . . . . . . 1 Damage Taken 2039 | . 146 108 467 . . 57 344 51 . 59 . 49 . 168 590 Core 346 | . 16 10 44 . . . 62 24 . 22 . . . . 168 Absorbed by Shields . | . . . . . . . . . . . . . . . . Regen/Repaired (Parts) 15 | . . . . . . . . . 15 . . . . . . Core Remaining (%) 95 | 100 . 89 . . . 89 88 96 100 97 100 100 . 100 89 Volleys Fired 143 | 15 22 12 54 . . 5 11 . . . . 1 . . 23 Largest 2 | 2 2 2 2 . . 2 1 . . . . 1 . . 1 Hottest 113 | 40 40 40 53 . . 66 33 . . . . 113 . . 58 Shots Fired 242 | 30 44 24 101 . . 8 11 . . . . 1 . . 23 Gun 190 | 30 44 24 87 . . 2 3 . . . . . . . . Cannon 26 | . . . 7 . . 4 1 . . . . 1 . . 13 Launcher 26 | . . . 7 . . 2 7 . . . . . . . 10 Special . | . . . . . . . . . . . . . . . . Kinetic 215 | 30 44 24 94 . . 6 4 . . . . . . . 13 Thermal 1 | . . . . . . . . . . . . 1 . . . Explosive 26 | . . . 7 . . 2 7 . . . . . . . 10 Electromagnetic . | . . . . . . . . . . . . . . . . Robot Hit Streak 28 | 5 7 6 28 . . 4 2 . . . . . . . 5 Robot Miss Streak 3 | 3 2 2 2 . . 1 3 . . . . . . . 2 Penetration Max . | . . . . . . . . . . . . . . . . Secondary Targets 2 | . . . 2 . . . . . . . . . . . . Max Gunslinging Chain 1 | . . . 1 . . . . . . . . . . . . Shots Hit Robots 169 | 18 29 15 71 . . 4 4 5 1 6 1 3 . 3 9 Core Hits 127 | 9 13 7 43 . . 5 12 4 1 3 1 1 . 1 27 Critical Kills 2 | . . . 2 . . . . . . . . . . . . Critical Parts Destroyed . | . . . . . . . . . . . . . . . . Critical Strikes 6 | . . . 3 . . . . . . . 1 1 . . 1 Destroy 2 | . . . 2 . . . . . . . . . . . . Blast 1 | . . . 1 . . . . . . . . . . . . Sever 1 | . . . . . . . . . . . . 1 . . . Impale 2 | . . . . . . . . . . . 1 . . . 1 Melee Attacks 105 | . . . . . . . 3 17 16 17 5 15 2 5 25 Impact . | . . . . . . . . . . . . . . . . Slashing 54 | . . . . . . . 3 17 16 15 . 3 . . . Piercing 51 | . . . . . . . . . . 2 5 12 2 5 25 Sneak Attacks 12 | . . . . . . . . 5 . 2 1 1 . 1 2 Combat Hostiles . | . . . . . . . . . . . . . . . . Follow-up Attacks 2 | . . . . . . . . . . . . 2 . . . Damage Inflicted 6091 | 244 380 155 1435 . . 205 475 376 55 387 100 196 . 378 1705 Guns 1558 | 244 379 152 745 . . 13 25 . . . . . . . . Cannons 216 | . . . 101 . . 57 . . . . . . . . 58 Explosions 2486 | . . . 589 . . 135 450 . . . . . . . 1312 Melee 1827 | . . . . . . . . 376 55 387 100 196 . 378 335 Ramming 4 | . 1 3 . . . . . . . . . . . . . Kinetic 1774 | 244 379 152 846 . . 70 25 . . . . . . . 58 Thermal 107 | . . . . . . 107 . . . . . . . . . Explosive 2379 | . . . 589 . . 28 450 . . . . . . . 1312 Electromagnetic . | . . . . . . . . . . . . . . . . Impact . | . . . . . . . . . . . . . . . . Slashing 857 | . . . . . . . . 376 55 387 . 39 . . . Piercing 970 | . . . . . . . . . . . 100 157 . 378 335 Highest Corruption 5 | . . . . . . . . . . 1 . . . . 5 Average Corruption 3 | . . . . . . . . . . 1 . . . . 4 Corruption Purged . | . . . . . . . . . . . . . . . . Corruption Blocked . | . . . . . . . . . . . . . . . . Effects 8 | . . . . . . . . . . 1 . . . . 7 Message Errors 1 | . . . . . . . . . . . . . . . 1 Matter Fused 1 | . . . . . . . . . . 1 . . . . . Heat Flow Errors 2 | . . . . . . . . . . . . . . . 2 Energy Discharges 2 | . . . . . . . . . . . . . . . 2 Misfires 1 | . . . . . . . . . . . . . . . 1 Weapon Failures 1 | . . . . . . . . . . . . . . . 1 Overload Shots . | . . . . . . . . . . . . . . . . Overflow Damage 242 | . . . 13 . . 23 . 68 . 71 . . . 41 26 Projectiles . | . . . . . . . . . . . . . . . . Explosions 62 | . . . 13 . . 23 . . . . . . . . 26 Melee 180 | . . . . . . . . 68 . 71 . . . 41 . Knockbacks 1 | . . . . . . 1 . . . . . . . . . Impact . | . . . . . . . . . . . . . . . . Kinetic 1 | . . . . . . 1 . . . . . . . . . Secondary . | . . . . . . . . . . . . . . . . Self-Inflicted Damage 141 | . . . 82 . . 31 28 . . . . . . . . Shots 6 | . . . 3 . . 2 1 . . . . . . . . Rammed 2 | . 1 1 . . . . . . . . . . . . . Targets Rammed 2 | . 1 1 . . . . . . . . . . . . . Kicked . | . . . . . . . . . . . . . . . . Crushed . | . . . . . . . . . . . . . . . . Highest Temperature 235 | . . . 27 . . 25 22 235 . 13 . 12 . . 159 Average Temperature 59 | . . . 7 . . 13 6 80 . 13 . 9 . . 77 Received Heat Transfer 444 | . 30 . 171 . . 27 144 18 . 9 . 9 . . 36 Siege Activations . | . . . . . . . . . . . . . . . . Martial Activations . | . . . . . . . . . . . . . . . . Shielding Activations . | . . . . . . . . . . . . . . . . Robots Disrupted . | . . . . . . . . . . . . . . . . Combat Hostiles . | . . . . . . . . . . . . . . . . Robots Corrupted . | . . . . . . . . . . . . . . . . Combat Hostiles . | . . . . . . . . . . . . . . . . Parts Fried . | . . . . . . . . . . . . . . . . Impact Corruptions . | . . . . . . . . . . . . . . . . Robots Melted . | . . . . . . . . . . . . . . . . Combat Hostiles . | . . . . . . . . . . . . . . . . Parts Melted . | . . . . . . . . . . . . . . . . Heat Transferred 150 | . . . . . . 150 . . . . . . . . . Parts Sabotaged . | . . . . . . . . . . . . . . . . Parts Stolen . | . . . . . . . . . . . . . . . . Parts Stripped . | . . . . . . . . . . . . . . . . Power Chain Reactions . | . . . . . . . . . . . . . . . . Alert | -11 -10 -10 -9 -9 -9 -8 -8 -7 -6 -5 -4 -3 -2 -2 -1 ------- Run | Yrd Mat Min Mat Min Exi Min Mat Fac Fac Fac Fac Res Res DSF Acc Maximum Alert Level 1 | . . . 1 . . . . . . . . . . . 1 Low Security (%) 89 | 100 100 100 46 100 . 100 100 100 100 100 100 100 100 100 98 Level 1 10 | . . . 53 . . . . . . . . . . . 2 Level 2 . | . . . . . . . . . . . . . . . . Level 3 . | . . . . . . . . . . . . . . . . Level 4 . | . . . . . . . . . . . . . . . . Level 5 . | . . . . . . . . . . . . . . . . High Security . | . . . . . . . . . . . . . . . . Max Security . | . . . . . . . . . . . . . . . . Peak Influence 299 | 10 60 65 299 43 . 149 177 103 39 36 15 42 26 12 242 Initial 76 | . . 1 19 43 . . 26 76 25 . 8 . 23 6 . Average 58 | 1 11 26 159 8 . 87 40 71 24 13 3 12 20 4 71 Influence Increases 2348 | 40 137 80 555 . . 219 387 158 107 100 21 84 6 22 432 Destroy 0b10 Robot/C 796 | . 100 60 360 . . 120 60 . . 16 . . . . 80 Destroy 0b10 Robot/NC 194 | 40 15 10 35 . . . 20 25 5 16 4 4 . 4 16 Destroy Leader 162 | . 16 10 80 . . 20 14 . . 2 2 2 . . 16 Allied During Kill 30 | . . . . . . 22 8 . . . . . . . . Successful Hack 210 | . 6 . 18 . . . . 63 58 38 7 . . . 20 Disable Machine 126 | . . . 15 . . 30 15 30 . 12 . . . . 24 Destroy Structure 398 | . . . 47 . . 27 30 10 14 16 8 18 6 6 216 Partial Spotted 90 | . . . . . . . 15 15 . . . 12 . . 48 Lose Combat Pursuer 342 | . . . . . . . 225 15 30 . . 48 . 12 12 Influence Decreases 2114 | 40 131 36 492 113 . 150 288 272 159 84 39 42 39 31 198 Entered New Map 304 | . . 5 31 70 . . 43 92 29 2 10 . 19 3 . Time Decay 1488 | 40 131 31 311 43 . 150 131 180 130 72 29 42 20 . 178 Lost Part 75 | . . . . . . . 30 . . 10 . . . 15 20 Lost Ally 69 | . . . . . . . 56 . . . . . . 13 . Purge Threat 178 | . . . 150 . . . 28 . . . . . . . . Squads Dispatched 18 | . 1 . 2 . . . 3 1 2 2 . 2 . 1 4 Investigation 3 | . 1 . . . . . . . 1 1 . . . . . Extermination 6 | . . . . . . . . 1 1 1 . 1 . . 2 Reinforcement 8 | . . . 2 . . . 2 . . . . 1 . 1 2 Assault . | . . . . . . . . . . . . . . . . Garrison 1 | . . . . . . . 1 . . . . . . . . Intercept . | . . . . . . . . . . . . . . . . Searches Triggered . | . . . . . . . . . . . . . . . . Construction Impeded 2 | . . . 1 . . . . . . . . . . . 1 Haulers Reinforced . | . . . . . . . . . . . . . . . . Active Scanning Responses . | . . . . . . . . . . . . . . . . Cargo Convoy Interrupts . | . . . . . . . . . . . . . . . . Stealth | -11 -10 -10 -9 -9 -9 -8 -8 -7 -6 -5 -4 -3 -2 -2 -1 --------- Run | Yrd Mat Min Mat Min Exi Min Mat Fac Fac Fac Fac Res Res DSF Acc Distress Signals 10 | . 1 . 4 . . . 1 . 2 1 . 1 . . . Communications Jammed . | . . . . . . . . . . . . . . . . Distress Signals . | . . . . . . . . . . . . . . . . Times Spotted 106 | . 8 3 25 . . 4 23 3 4 8 1 8 . 4 15 Peak Tracking Total 10 | . 2 3 6 . . 3 10 2 4 4 1 6 . 3 7 Tactical Retreats 10 | . . . . . . . 4 1 1 . . 2 . 1 1 Traps | -11 -10 -10 -9 -9 -9 -8 -8 -7 -6 -5 -4 -3 -2 -2 -1 ------- Run | Yrd Mat Min Mat Min Exi Min Mat Fac Fac Fac Fac Res Res DSF Acc Traps Triggered 5 | . 2 . . . . . . . . 2 . . . . 1 Indirectly . | . . . . . . . . . . . . . . . . Trap Hack Attempts . | . . . . . . . . . . . . . . . . Triggered . | . . . . . . . . . . . . . . . . Disarmed . | . . . . . . . . . . . . . . . . Reprogrammed . | . . . . . . . . . . . . . . . . Reused . | . . . . . . . . . . . . . . . . Traps Extracted . | . . . . . . . . . . . . . . . . Installed . | . . . . . . . . . . . . . . . . Triggered . | . . . . . . . . . . . . . . . . Machines | -11 -10 -10 -9 -9 -9 -8 -8 -7 -6 -5 -4 -3 -2 -2 -1 ---------- Run | Yrd Mat Min Mat Min Exi Min Mat Fac Fac Fac Fac Res Res DSF Acc Machines Disabled 9 | . . . 1 . . 2 1 2 . 1 . . . . 2 Max in Single Turn 2 | . . . 1 . . 2 1 1 . 1 . . . . 1 Garrison Access 7 | . . . . . . . 1 2 2 1 . . . . 1 Machines Repaired . | . . . . . . . . . . . . . . . . Machines Dismantled . | . . . . . . . . . . . . . . . . Machines Sabotaged . | . . . . . . . . . . . . . . . . Overloaded Fab Kills . | . . . . . . . . . . . . . . . . Hacking | -11 -10 -10 -9 -9 -9 -8 -8 -7 -6 -5 -4 -3 -2 -2 -1 --------- Run | Yrd Mat Min Mat Min Exi Min Mat Fac Fac Fac Fac Res Res DSF Acc Machines Accessed 58 | . 2 . 4 . 2 . 6 13 13 6 3 2 2 . 5 Terminals 28 | . 2 . 3 . . . 4 4 6 4 2 . 1 . 2 Fabricators 7 | . . . . . . . . 4 1 . . 1 1 . . Repair Stations 4 | . . . . . . . . 1 1 1 . . . . 1 Recycling Units 4 | . . . 1 . . . . 1 2 . . . . . . Scanalyzers 5 | . . . . . . . 1 1 1 . 1 . . . 1 Garrison Access 8 | . . . . . . . 1 2 2 1 . 1 . . 1 Total Hacks 119 | . 3 . 12 . 2 . 13 28 28 12 4 4 2 . 11 Successful 66 | . 1 . 7 . 2 . 5 16 15 7 4 2 2 . 5 Failed 50 | . 2 . 5 . . . 7 11 13 5 . 2 . . 5 Catastrophic 9 | . 1 . 1 . . . 1 . 2 2 . 1 . . 1 Database Lockouts 3 | . . . . . . . 1 1 . . . . . . 1 Manual 30 | . 2 . 3 . 1 . 2 9 7 1 2 1 . . 2 Terminals 66 | . 3 . 9 . . . 8 12 15 10 3 . 1 . 5 Fabricators 12 | . . . . . . . . 8 1 . . 2 1 . . Repair Stations 6 | . . . . . . . . 1 3 1 . . . . 1 Recycling Units 7 | . . . 3 . . . . 2 2 . . . . . . Scanalyzers 14 | . . . . . . . 3 3 3 . 1 . . . 4 Garrison Access 12 | . . . . . . . 2 2 4 1 . 2 . . 1 Terminal Hacks 32 | . 1 . 5 . 2 . 2 5 7 5 2 . 1 . 2 Record 1 | . . . . . 1 . . . . . . . . . . Prototype ID Bank 6 | . 1 . 1 . . . 1 3 . . . . . . . Open Door 1 | . . . . . . . . . . . . . . . 1 Open DSF 1 | . . . . . . . . . . . . . 1 . . Level Access Points 4 | . . . . . . . . . 1 1 1 . . . 1 Branch Access Points 1 | . . . . . . . . . 1 . . . . . . Terminal Index 1 | . . . . . . . . . 1 . . . . . . Unreport Threat 2 | . . . 1 . . . 1 . . . . . . . . Locate Traps 1 | . . . . . . . . . . 1 . . . . . Maintenance Status 1 | . . . . . . . . . 1 . . . . . . Hauler Manifests 3 | . . . . . . . . 1 1 . 1 . . . . Registered Components 4 | . . . 1 . . . . 1 1 1 . . . . . Registered Prototypes 2 | . . . . . . . . . 1 1 . . . . . Zone Layout 3 | . . . 2 . . . . . . 1 . . . . . Proto ID Catalog 1 | . . . . . 1 . . . . . . . . . . Fabricator Hacks 4 | . . . . . . . . 2 . . . 1 1 . . Network Status 4 | . . . . . . . . 2 . . . 1 1 . . Repair Station Hacks 4 | . . . . . . . . 1 2 . . . . . 1 Scan Component 1 | . . . . . . . . . 1 . . . . . . Repair 1 | . . . . . . . . . 1 . . . . . . Refit 2 | . . . . . . . . 1 . . . . . . 1 Recycling Unit Hacks 4 | . . . 2 . . . . 1 1 . . . . . . Retrieve Components 4 | . . . 2 . . . . 1 1 . . . . . . Scanalyzer 8 | . . . . . . . 2 3 1 . 1 . . . 1 Insert Component 4 | . . . . . . . 1 1 1 . 1 . . . . Retrieve Study 4 | . . . . . . . 1 2 . . . . . . 1 Garrison Access Hacks 7 | . . . . . . . 1 2 2 1 . . . . 1 Seal Access 7 | . . . . . . . 1 2 2 1 . . . . 1 Unauthorized Hacks 7 | . . . . . . . . 2 2 1 1 1 . . . Terminals 3 | . . . . . . . . . 1 1 1 . . . . Assimilate 3 | . . . . . . . . . 1 1 1 . . . . Fabricators 4 | . . . . . . . . 2 1 . . 1 . . . Liberate 1 | . . . . . . . . 1 . . . . . . . Fabnet 1 | . . . . . . . . . . . . 1 . . . Haulers 2 | . . . . . . . . 1 1 . . . . . . Repair Stations . | . . . . . . . . . . . . . . . . Recycling Units . | . . . . . . . . . . . . . . . . Scanalyzers . | . . . . . . . . . . . . . . . . Garrison Access . | . . . . . . . . . . . . . . . . Data Cores Recovered 1 | . . . . . . . . . 1 . . . . . . Used 1 | . . . . . . . . . 1 . . . . . . Hacking Detections 36 | . 2 . 2 . . . 5 8 9 5 1 1 . . 3 Full Trace Events 1 | . . . . . . . . . 1 . . . . . . Feedback Events . | . . . . . . . . . . . . . . . . Feedback Blocked . | . . . . . . . . . . . . . . . . Robot Schematics Acquired . | . . . . . . . . . . . . . . . . Robots Built . | . . . . . . . . . . . . . . . . Authchips . | . . . . . . . . . . . . . . . . Time . | . . . . . . . . . . . . . . . . Total Robot Build Rating . | . . . . . . . . . . . . . . . . Part Schematics Acquired . | . . . . . . . . . . . . . . . . Parts Built . | . . . . . . . . . . . . . . . . Authchips . | . . . . . . . . . . . . . . . . Time . | . . . . . . . . . . . . . . . . Total Part Build Rating . | . . . . . . . . . . . . . . . . Part Studies Acquired 4 | . . . . . . . 1 2 . . . . . . 1 Parts Repaired 1 | . . . . . . . . . 1 . . . . . . Time 25 | . . . . . . . . . 25 . . . . . . Parts Recycled . | . . . . . . . . . . . . . . . . Recycled Matter . | . . . . . . . . . . . . . . . . Retrieved Matter . | . . . . . . . . . . . . . . . . Retrieved Components 2 | . . . . . . . . . 2 . . . . . . Parts Scanalyzed . | . . . . . . . . . . . . . . . . Part Schematics Acquired . | . . . . . . . . . . . . . . . . Parts Damaged . | . . . . . . . . . . . . . . . . Bothacking | -11 -10 -10 -9 -9 -9 -8 -8 -7 -6 -5 -4 -3 -2 -2 -1 ------------ Run | Yrd Mat Min Mat Min Exi Min Mat Fac Fac Fac Fac Res Res DSF Acc Used RIF Installer . | . . . . . . . . . . . . . . . . Robots Hacked . | . . . . . . . . . . . . . . . . Non-combat . | . . . . . . . . . . . . . . . . Combat . | . . . . . . . . . . . . . . . . Robot Hacks Applied . | . . . . . . . . . . . . . . . . Relay Couplers Released . | . . . . . . . . . . . . . . . . Fabnet Peak Effective % 3 | . . . . . . . . . . . . . 3 3 1 Robots Rewired 1 | . . . . . . . . . . 1 . . . . . Allies Hacked . | . . . . . . . . . . . . . . . . Hacks Repelled . | . . . . . . . . . . . . . . . . Allies | -11 -10 -10 -9 -9 -9 -8 -8 -7 -6 -5 -4 -3 -2 -2 -1 -------- Run | Yrd Mat Min Mat Min Exi Min Mat Fac Fac Fac Fac Res Res DSF Acc Total Allies 7 | . . . . 3 . . . . 1 2 1 . . . . Largest Group 3 | . . . . 3 3 3 3 . 1 2 2 2 2 2 . Highest-Rated Group 62 | . . . . 40 40 40 40 . 26 62 52 52 52 52 . Highest-Rated Ally 41 | . . . . 16 16 16 16 . 26 41 26 26 26 26 . Total Orders . | . . . . . . . . . . . . . . . . Ally Attacks 28 | . . . . . . 10 15 . . 3 . . . . . Total Damage 460 | . . . . . . 114 146 . . 200 . . . . . Kills 5 | . . . . . . 2 2 . . 1 . . . . . Allies Corrupted . | . . . . . . . . . . . . . . . . Allies Melted . | . . . . . . . . . . . . . . . . Intel | -11 -10 -10 -9 -9 -9 -8 -8 -7 -6 -5 -4 -3 -2 -2 -1 ------- Run | Yrd Mat Min Mat Min Exi Min Mat Fac Fac Fac Fac Res Res DSF Acc Active Infowar (turns) 3873 | 35 524 128 676 252 336 304 189 212 275 191 131 128 42 50 400 Optics 745 | . . . . . . . . . . . 125 128 42 50 400 Structural 1552 | . . . 8 . . . 184 212 275 191 131 128 42 50 331 Seismic 2337 | 35 524 128 668 252 336 304 90 . . . . . . . . Robot Analysis Total . | . . . . . . . . . . . . . . . . Derelict Logs Recovered 1 | . . . . 1 . . . . . . . . . . . Drone Launches . | . . . . . . . . . . . . . . . . Drone Recoveries . | . . . . . . . . . . . . . . . . Exploration | -11 -10 -10 -9 -9 -9 -8 -8 -7 -6 -5 -4 -3 -2 -2 -1 ------------- Run | Yrd Mat Min Mat Min Exi Min Mat Fac Fac Fac Fac Res Res DSF Acc Turns Passed 4453 | 228 524 128 770 252 336 304 324 370 275 191 131 128 42 50 400 Spaces Moved 5913 | 94 273 51 332 150 208 179 637 898 757 496 402 405 101 134 796 Core 2 | 2 . . . . . . . . . . . . . . . Treads 1288 | 92 273 51 332 150 208 179 3 . . . . . . . . Legs . | . . . . . . . . . . . . . . . . Wheels . | . . . . . . . . . . . . . . . . Hover . | . . . . . . . . . . . . . . . . Flight 4623 | . . . . . . . 634 898 757 496 402 405 101 134 796 Fastest Speed 17 | 50 160 160 160 160 160 160 27 21 21 18 17 17 18 18 20 Average Speed 51 | 157 160 160 160 160 160 160 28 24 21 18 17 17 18 18 21 Slowest Speed 160 | 160 160 160 160 160 160 160 160 27 26 18 18 91 18 20 24 Overloaded Moves . | . . . . . . . . . . . . . . . . Propulsion Burnouts . | . . . . . . . . . . . . . . . . Robots Hopped 26 | . . . . . . . 10 3 7 1 . 2 . . 3 Potential Cave-ins . | . . . . . . . . . . . . . . . . Cave-ins Triggered . | . . . . . . . . . . . . . . . . Exploration Rate (%) 31 | 4 45 11 34 35 60 47 61 27 29 19 9 15 4 85 22 Regions Visited 15 Branch Regions 4 Pre-discovered Areas 1 | . . . . . 1 . . . . . . . . . . Known Exits Taken 4 | . . . . . . . . . 1 1 1 . 1 . . Unknown Exits Taken 10 | 1 1 1 1 1 1 1 1 1 . . . 1 . . . Scrap Searched 1 | . . . . 1 . . . . . . . . . . . Spaces Dug 88 | . . . 3 . . . 3 10 14 7 4 8 2 2 35 Terrain Destroyed 251 | . . . 45 . . 34 30 10 14 7 4 9 2 2 94 Melee 71 | . . . . . . . 3 10 14 7 4 8 2 2 21 Projectile 12 | . . . 1 . . . . . . . . 1 . . 10 AOE 168 | . . . 44 . . 34 27 . . . . . . . 63 Terrain Rammed . | . . . . . . . . . . . . . . . . Walls Destroyed . | . . . . . . . . . . . . . . . . Machines Disabled . | . . . . . . . . . . . . . . . . Actions | -11 -10 -10 -9 -9 -9 -8 -8 -7 -6 -5 -4 -3 -2 -2 -1 --------- Run | Yrd Mat Min Mat Min Exi Min Mat Fac Fac Fac Fac Res Res DSF Acc Total 6885 | 140 321 80 478 162 212 189 753 1024 841 573 455 440 119 148 950 Wait 518 | 16 6 11 57 13 3 3 84 86 58 28 39 9 14 5 86 Move 5846 | 93 272 50 331 149 207 178 617 891 742 493 401 400 100 133 789 Hop 25 | . . . . . . . 9 3 7 1 . 2 . . 3 Pick Up 61 | 8 8 3 6 . 1 . 6 6 6 6 4 2 1 2 2 Fast Attach 30 | 7 . . 1 . . . 2 5 1 4 1 4 . 1 4 Attach 32 | . . . 2 . . . 11 2 2 5 2 . 2 . 6 Detach 17 | . . . . . . . 3 5 . 2 . 2 . . 5 Swap 34 | 1 2 . 15 . . 2 2 . 4 1 1 2 . 1 3 Drop 60 | . 10 3 12 . 1 1 5 5 5 5 2 6 . 1 4 Fire 143 | 15 22 12 54 . . 5 11 . . . . 1 . . 23 Melee 102 | . . . . . . . 3 17 16 17 5 12 2 5 25 Ram . | . . . . . . . . . . . . . . . . Kick . | . . . . . . . . . . . . . . . . Crush 2 | . 1 1 . . . . . . . . . . . . . Escape Stasis 3 | . . . . . . . . . . 3 . . . . . Rewire 12 | . . . . . . . . 4 . 8 . . . . . Trap . | . . . . . . . . . . . . . . . . Miscellaneous . | . . . . . . . . . . . . . . . . Route ------- -11/Scrapyard -10/Materials (discovered 2 exits: *Mat / [*Min]) -10/Mines -9/Materials (discovered 2 exits: *Mat / [*Min]) -9/Mines -9/Exiles -8/Mines -8/Materials -7/Factory (discovered 3 exits: *Fac / *Sto / *Low) -6/Factory (discovered 6 exits: *Fac x4 / Low x2) -5/Factory (discovered 6 exits: *Fac x4 / [*Upp] / [*Ext]) -4/Factory (discovered 4 exits: *Res x4) -3/Research -2/Research -2/DSF -1/Access To Epsilon Eridani History --------- Turn | Location | Event 2 | -11/Scrapyard | Met Revision 17 28 | -11/Scrapyard | Discovered new exit (range 16) 229 | -11/Scrapyard | Entered Materials 306 | -10/Materials | Build established: Mutant 417 | -10/Materials | Discovered new exit (range 15) 603 | -10/Materials | Discovered new exit (range 16) 753 | -10/Materials | Entered Mines 760 | -10/Mines | Received a Rocket Launcher from a helpful Derelict 805 | -10/Mines | Discovered new exit (range 6) 881 | -10/Mines | Entered Materials 881 | -9/Materials | Evolved 2 slots: Propulsion x1, Utility x1 1241 | -9/Materials | Destroyed 9 combat bots 1436 | -9/Materials | Discovered new exit (range 15) 1595 | -9/Materials | Discovered new exit (range 17) 1651 | -9/Materials | Entered Mines 1673 | -9/Mines | Met a Derelict bent on vengeance 1711 | -9/Mines | Assisted by bots powering up and referring to "LRC-V3" 1783 | -9/Mines | Learned Materials security intel 1883 | -9/Mines | Deemed a non-threat by the Exiles lab entrance 1883 | -9/Mines | Discovered new exit (range 5) 1903 | -9/Mines | Entered Exiles 1903 | -9/Exiles | Accompanied by 3 allies 1942 | -9/Exiles | Met 8R-AWN 1966 | -9/Exiles | Met EX-HEX 2014 | -9/Exiles | Met EX-BIN 2031 | -9/Exiles | Aligned with FarCom system 2033 | -9/Exiles | Given EX-Vault access code 2071 | -9/Exiles | Opened EX-Vault 2082 | -9/Exiles | Found 0b10 Alert Chip 2115 | -9/Exiles | Warned to stay clear of 0b10 Research branches 2164 | -9/Exiles | Met EX-DEC 2175 | -9/Exiles | Learned location of Zion (-6) 2223 | -9/Exiles | Discovered new exit (range 10) 2239 | -9/Exiles | Left Exiles lab with 0b10 Alert Chip 2239 | -9/Exiles | Entered Mines 2239 | -8/Mines | Accompanied by 3 allies 2521 | -8/Mines | Discovered new exit (range 10) 2543 | -8/Mines | Entered Materials 2543 | -8/Materials | Accompanied by 3 allies 2543 | -8/Materials | Evolved 2 slots: Propulsion x2 2640 | -8/Materials | Garrison activated, responded to threat 2695 | -8/Materials | Lost 3 allies 2730 | -8/Materials | Central database locked down 2823 | -8/Materials | Discovered new exit (range 16) 2867 | -8/Materials | Entered Factory 2867 | -7/Factory | Evolved 2 slots: Power x1, Propulsion x1 2884 | -7/Factory | Discovered new exit (range 15) 2898 | -7/Factory | Identified exit to Storage 2973 | -7/Factory | Build established: Sprinter 3088 | -7/Factory | Discovered new exit (range 8) 3193 | -7/Factory | Identified exit to Lower Caves 3226 | -7/Factory | Central database locked down 3234 | -7/Factory | Discovered new exit (range 13) 3237 | -7/Factory | Entered another Factory area 3237 | -6/Factory | Evolved 2 slots: Utility x2 3247 | -6/Factory | Identified exit to Lower Caves 3288 | -6/Factory | Repaired Imp. Flight Unit 3340 | -6/Factory | Identified exit to Factory 3512 | -6/Factory | Entered another Factory area 3512 | -5/Factory | Evolved 2 slots: Propulsion x1, Utility x1 3570 | -5/Factory | Identified exit to Factory 3619 | -5/Factory | Discovered new exit (range 11) 3677 | -5/Factory | Discovered new exit (range 9) 3703 | -5/Factory | Entered another Factory area 3703 | -4/Factory | Accompanied by 1 ally 3703 | -4/Factory | Evolved 2 slots: Utility x2 3788 | -4/Factory | Discovered new exit (range 15) 3799 | -4/Factory | Identified exit to Research 3814 | -4/Factory | Build established: Hacker-Scout 3834 | -4/Factory | Entered Research 3834 | -3/Research | Accompanied by 2 allies 3834 | -3/Research | Evolved 2 slots: Utility x2 3946 | -3/Research | Discovered new exit (range 8) 3962 | -3/Research | Entered another Research area 3962 | -2/Research | Accompanied by 2 allies 3962 | -2/Research | Evolved 2 slots: Propulsion x1, Utility x1 3992 | -2/Research | Identified exit to DSF 4004 | -2/Research | Entered DSF 4004 | -2/DSF | Accompanied by 2 allies 4016 | -2/DSF | Discovered new exit (range 15) 4021 | -2/DSF | Additional patrols routed to DSF 4054 | -2/DSF | Entered Access 4054 | -1/Access | Evolved 2 slots: Utility x2 4057 | -1/Access | Identified exit to Surface 4164 | -1/Access | Central database locked down 4340 | -1/Access | Spotted B-99 Colossus 4349 | -1/Access | Build established: Wizard-Scout 4454 | *** | Escaped! Last Messages --------------- 04417_ #:#GXSTG>MQ ZAGCFK>BVO&:UGORJSR DUFS,6F| 04417_ Acquired Backup Power VII. 04422_ Dropped Imp. Cesium-ion Thruster. 04436_ Connecting with Terminal... >>Open(Door) Sealed Barrier opened. 04437_ The Access Shell folds into the floor. 04440_ System corrupted: FCS attempts to trigger Graviton Cannon. 04440_ System corrupted: Graviton Cannon misfires. 04440_ Terminal disabled. 04445_ U-05 Engineer builds a Wall. 04446_ T-07 Excavator destroyed. 04446_ Destroyed Welding Torch. 04447_ ALERT: Construction progress impeded, dispatching reinforcements to local area. 04448_ U-05 Engineer destroyed. 04450_ Adv. Hacking Suite destroyed. 04452_ B-74 Champion destroyed. 04452_ Destroyed Phase Gun. 04452_ G-73 Enforcer destroyed. Map ----- +----------------------------------------------------+ | ????? # ## + ??????? # # ???????? | | ????? # # ??????? + + ???????? | | ????? # # ??????? # # ???????? | | ????? # ! + ??????? # ##???????? | | ????? # #### #### ??????? # ##???????? | | ????? # #### #####???????## ???????? | | ????? ## ##????????????????? ???????? | | ????? ## ##????????????????? ##???????? | | ????? ## ##????????????????? ####?????? | | ????? + ##????????????????? ####?????? | | ????? ## ##????????????????? ?????? | | #########+# ##w###???????????????? ?????? | | " / / ?????? + ??????? | | # #?????????????? # ??????? | | "" # #?????????????? # ???????? | | "" # #?????????????? / ???????? | | """"" # ##????????????? # ???????? | | """"" # ##????????????? # ##???????? | | "" ################?????#####???## ##???????? | | "" #????????###################### ##???????? | | #???????????########### ####### ##???????? | | = #???????????"" ##???????? | | #??????BB????" ###??????? | | ##########????BB????" ###??????# | | ??????" ##??????# | | ??????" "@ ###?????# | | ??????" "" ##?????# | | ???????" !* ##?????# | | ######+### ?BB????" g ######## | | # ??????BB????" " % % ####### | | # #?????????"" " " g ## | | # """#?????????########### # ##### | | # """#?????????############# ## ##### | | # R"#??????????????????###### #### ##??# | | # """#?????????????????????##### # #### ##### | | # "" ###??????????????????????#### ;###+##### | | # ###?????????????????????## # # ! | | # ##?????####???????????## #BB# | | # # # # ###########??????????? BB# ! | | # ### #######"##??????????? + ""*"" ! | | ###??????????? # ""R"" | | ##????????## ? # """" | | # ##????????## # | | # " ##????????## # | | # " "" ##????????##"" ! ########## | | + " "" ###???????##"" | | # ! | #####?????##"" | | # "###########T ########"" | | ##############+#####""#########"" # " | | ############## ###### " #"" # # | +----------------------------------------------------+ Best States ------------- Heat Dissipation 83 Energy Generation 33 Energy Capacity 300 Matter Stores 313 Matter Capacity 400 Sight Range 22 Terrain Scan Density 10 Armor Coverage 300 Evasion (%) 77 Launcher Accuracy 20 Recoil Reduction 3 Offensive Hacking 62 Defensive Hacking 28 Item Schematics ----------------- None Robot Schematics ------------------ None Fabricated ------------ Nothing Repaired ---------- Imp. Flight Unit | 62% | -6/Factory Studied --------- VTOL Module | -8/Materials | Hacked Xenon Bombardment Thruster | -7/Factory | Hacked Chainsword | -7/Factory | Hacked Nuclear Pulse Array | -1/Access | Hacked Alien Tech Used ----------------- None Achievements -------------- None Challenges ------------ None Game ------ Seed SlugConceptKit Manual? 0 Play Time 00:59:08 Cumulative 199.9 hours Start 2026.04.11 @ 06:50:52 End 2026.04.11 @ 07:48:37 Sessions 1 Manual Loads 0 Difficulty Rogue Special Mode None Game No. 127 Rogue 123 Adventurer 4 Explorer 0 Win Type 0 Total 32 Types 31/0/1/0/0/0/0/0/0/0 Lore% 85 Gallery% 62 Achievement% 57 Wizard Run 0 Options --------- Layout 0 ASCII 0 Keyboard 1 Movement Vi Keybinds 0 Fullscreen 0 Font 16/SmallcapsGlow Map View 76x50 Zoom Use 0% Tactical HUD 1 Map Filters NONE Filters NONE Steam 1 RUN: c818313b-c022-43aa-abe8-7acf76acd4d6